Workbook

Sheet Verificaciones (hidden)
B4: No. Oferta | D4: OFERENTE | E4: Verificación Formulario No. 03 | P4: Datos Declaración Renta 2003 | T4: Variación
E5: Activo Corriente | F5: Activo Fijo | G5: Otros Activos | H5: Total Activo | I5: Pasivo Corriente | J5: Pasivo Mediano y Largo Plazo | K5: Total Pasivo | L5: Patrimonio | M5: Total Pasivo + Patrimonio | N5: Utilidad Antes de Impuesto | O5: Utilidad Neta | P5: Patrimonio Bruto | Q5: Total Pasivo | R5: Patrimonio Liquido | S5: Renta Liquida | T5: Patrimonio Bruto | U5: Total Pasivo | V5: Patrimonio Liquido | W5: Renta Liquida
B7: 1 | D7: CONSORCIO LAS ANIMAS #1
C8: 1.1 | D8: GERMA TORRES SALGADO | E8: 661279000 | F8: 586850000 | H8: =SUM(E8:G8) -> 1248129000 | I8: 133995725 | J8: 243009275 | K8: =SUM(I8:J8) -> 377005000 | L8: =+H8-K8 -> 871124000 | M8: =+K8+L8 -> 1248129000 | N8: 89170000 | O8: 65583000 | P8: 1248129000 | Q8: 353418000 | R8: 894711000 | S8: 93656000 | T8: =(H8-P8)/P8 -> 0 | U8: =+(K8-Q8)/Q8 -> 0.06673966804 | V8: =(L8-R8)/R8 -> -0.02636270259 | W8: =(O8-S8)/S8 -> -0.2997458785
C9: 1.2 | D9: MARIO GIRALDO ENCISO | E9: 902790808 | F9: 22582416 | G9: 15532940 | H9: =SUM(E9:G9) -> 940906164 | I9: 69497421 | J9: 467428657 | K9: =SUM(I9:J9) -> 536926078 | L9: 403980086 | M9: =+K9+L9 -> 940906164 | N9: 18766695 | O9: 20396695 | T9: =(H9-P9)/P9 ->  | U9: =+(K9-Q9)/Q9 ->  | V9: =(L9-R9)/R9 ->  | W9: =(O9-S9)/S9 -> 
C10: 1.3 | D10: MANUEL MOSQUERA | E10: 300353422 | F10: 251940082 | G10: 69532472 | H10: 621825976 | I10: 153716887 | J10: 54587444 | K10: 208304331 | L10: 413521645 | M10: 621825976 | N10: 16241438 | O10: 16221673 | P10: 611957000 | Q10: 208285000 | R10: 403672000 | S10: 17042000 | T10: 0.01612691088 | U10: 9.2810332e-05 | V10: 0.0244001194 | W10: -0.04813560615
C11: 1.4 | D11: JORGE DE JESUS E. | E11: 506655816 | F11: 152054516 | G11: 245059330 | H11: 903769662 | I11: 137779007 | J11: 42562365 | K11: 180341372 | L11: 723428291 | M11: 903769663 | N11: 50395207 | O11: 42647207 | P11: 903769000 | Q11: 180341000 | R11: 723428000 | S11: 46988000 | T11: 7.324880583e-07 | U11: 2.062758885e-06 | V11: 4.022515026e-07 | W11: -0.09238088448
C12: 1.5 | D12: REPRESENTA Y CONS PAI LTDA | E12: 378072865 | F12: 103601233 | G12: 955950 | H12: 482630048 | I12: 36771662 | J12: 134085789 | K12: 170857451 | L12: 311772597 | M12: 482630048 | N12: 15703386 | O12: 7048986 | P12: 482631000 | Q12: 170858000 | R12: 311773000 | S12: 22479000 | T12: -1.97252145e-06 | U12: -3.213194583e-06 | V12: -1.292607121e-06 | W12: -0.6864190578
C13: 1.6 | D13: ASFALTOS DE OCCID S.A. | E13: 69932426 | F13: 460250218 | G13: 107112095 | H13: 637294739 | I13: 29489669 | J13: 80572256 | K13: 110061925 | L13: 527232814 | M13: 637294739 | N13: 8363847 | O13: 3783847 | P13: 637294000 | Q13: 110061000 | R13: 527233000 | S13: 11897000 | T13: 1.159590393e-06 | U13: 8.40443027e-06 | V13: -3.527852012e-07 | W13: -0.6819494831
B14: 2 | D14: CONCAY S.A. | E14: 40069494079 | F14: 5482697057 | G14: 13667555753 | H14: 59219746889 | I14: 21914617588 | J14: 7301680273 | K14: 29216297861 | L14: 30003449028 | M14: 59219746889 | N14: 6682012591 | O14: 6273203591 | P14: 42778874000 | Q14: 22139102000 | R14: 20639772000 | S14: 1168027000 | T14: 0.3843222449 | U14: 0.3196695088 | V14: 0.4536715342 | W14: 4.370769332
B15: 3 | D15: UNION TEMPORAL PAVIMENTACION DEL CHOCO
C16: 3.1 | D16: AULI FERNANDO VELANDIA M | E16: 1044688000 | F16: 114208000 | G16: 507125000 | H16: 1666021000 | I16: 89341000 | J16: 920563000 | K16: 1009904000 | L16: 656117000 | M16: 1666021000 | N16: 82940000 | O16: 65192000 | P16: 1666021000 | Q16: 1009904000 | R16: 656117000 | S16: 82940000 | T16: 0 | U16: 0 | V16: 0 | W16: -0.213986014
C17: 3.2 | D17: HIFO S.A. | E17: 2210583412 | F17: 1796245413 | G17: 950172658 | H17: 4957001483 | I17: 578205453 | J17: 2306752990 | K17: 2884958443 | L17: 2072043050 | M17: 4957001493 | N17: 126050800 | O17: 81933020 | P17: 4957002000 | Q17: 2884958000 | R17: 2072044000 | S17: 126051000 | T17: -1.042969117e-07 | U17: 1.535550951e-07 | V17: -4.584844723e-07 | W17: -0.3500010313
C18: 3.3 | D18: INFICAS S.A. | E18: 1128389590 | F18: 497010730 | G18: 450516529 | H18: 2075916849 | I18: 843827380 | J18: 171544974 | K18: 1015372354 | L18: 1060544495 | M18: 2075916849 | N18: 150152888 | O18: 84818888 | P18: 2075917000 | Q18: 1014364000 | R18: 1061553000 | S18: 186669000 | T18: -7.273893898e-08 | U18: 0.0009940751052 | V18: -0.0009500279308 | W18: -0.5456187798
C19: 3.4 | D19: CATOBRAS LTDA | H19: 0 | K19: 0 | M19: 0
C20: 3.5 | D20: CARLOS MARIO PALACIO CH | E20: 397516649 | F20: 44535519 | H20: 442052168 | I20: 205584360 | K20: 205584360 | L20: 236467808 | M20: 442052168 | N20: 52120000 | O20: 52120000 | P20: 442053000 | Q20: 205584000 | R20: =P20-Q20 -> 236469000 | S20: 52120000 | T20: -1.882127256e-06 | U20: 1.751109036e-06 | V20: -5.040829876e-06 | W20: 0
C21: 3.6 | D21: LUIS CORANDO VELAZQUEZ | E21: 230187357 | F21: 487735892 | G21: 9625046 | H21: 727548295 | I21: 117145481 | J21: 76862715 | K21: 194008196 | L21: 533540099 | M21: 727548295 | P21: 727548000 | Q21: 194008000 | R21: 533540000 | T21: 4.05471529e-07 | U21: 1.010267618e-06 | V21: 1.855530982e-07
B22: 4 | D22: CONSORCIO GOMGO 35
C23: 4.1 | D23: MIGUEL EDGAR ALFONSO | E23: 940500000 | F23: 220000000 | G23: 19500000 | H23: 1180000000 | I23: 50000000 | J23: 50000000 | K23: 100000000 | L23: 1080000000 | M23: 1180000000 | N23: 38000000 | O23: 38000000 | P23: 1180000000 | Q23: 100000000 | R23: 1080000000 | S23: 35000000 | T23: 0 | U23: 0 | V23: 0 | W23: 0.08571428571
C24: 4.2 | D24: ABEL FRANCISCO VALBUENA | E24: 1215892000 | F24: 443008000 | G24: 283790000 | H24: 1942690000 | I24: 374625000 | J24: 55000000 | K24: 429625000 | L24: 1513065000 | M24: 1942690000 | N24: 47375000 | O24: 47375000 | P24: 1942690000 | Q24: 429625000 | R24: 1513065000 | S24: 47375000 | T24: 0 | U24: 0 | V24: 0 | W24: 0
C25: 4.3 | D25: CESAR GOMEZ | E25: 2149248232 | F25: 390736722 | H25: 2539984954 | I25: 1922763807 | J25: 93405043 | K25: 2016168850 | L25: 523816104 | M25: 2539984954 | N25: 41060626 | O25: 54549620 | P25: 2539984000 | Q25: 2016168000 | R25: 523816000 | S25: 71993000 | T25: 3.755929171e-07 | U25: 4.215918515e-07 | V25: 1.985429998e-07 | W25: -0.2422927229
C26: 4.4 | D26: LUIS MAYORGA AGUIRRE | E26: 1286602000 | F26: 529776000 | G26: 367025000 | H26: 2183403000 | I26: 631956000 | J26: 6584000 | K26: 638540000 | L26: 1544863000 | M26: 2183403000 | P26: 2183403000 | Q26: 638540000 | R26: =P26-Q26 -> 1544863000 | T26: 0 | U26: 0 | V26: 0
B27: 5 | D27: CONSORCIO PLAN VIAL CHOCO 2005
C28: 5.1 | D28: VARGAS VELANDIA LTDA | E28: 3662005000 | F28: 457085000 | G28: 114779000 | H28: 4233869000 | I28: 530721000 | J28: 160038000 | K28: 690759000 | L28: 3543110000 | M28: 4233869000 | N28: 457250000 | O28: 297212000 | P28: 4229443000 | Q28: 686333000 | R28: 3543110000 | S28: 457250000 | T28: 0.001046473495 | U28: 0.006448764667 | V28: 0 | W28: -0.3500010935
C29: 5.2 | D29: NACIONAL DE PAVIMENTOS LTDA | E29: 1345051857 | F29: 622683311 | G29: 1888148909 | H29: 3855884077 | I29: 235974264 | J29: 1059293810 | K29: 1295268074 | L29: 2560616003 | M29: 3855884077 | N29: 211804765 | O29: 128144765 | P29: 1968115000 | Q29: 1295268000 | R29: 672847000 | S29: 239030000 | T29: 0.9591762052 | U29: 5.713103389e-08 | V29: 2.805643784 | W29: -0.4638967284
C30: 5.3 | D30: JAIME VARGAS GALINDO | E30: 68481000 | F30: 248149000 | G30: 1829723000 | H30: 2146353000 | I30: 20336000 | J30: 1030069000 | K30: 1050405000 | L30: 1095948000 | M30: 2146353000 | N30: 63435000 | O30: 51635000 | P30: 2146353000 | Q30: 1050405000 | R30: 1095948000 | S30: 63435000 | T30: 0 | U30: 0 | V30: 0 | W30: -0.1860171829
C31: 5.4 | D31: VINDICO S.A. | E31: 9098479232 | F31: 531593591 | G31: =1377315265+27043045 -> 1404358310 | H31: 11034431133 | I31: 1681476244 | J31: 4212950518 | K31: 5894426762 | L31: 5140004372 | M31: 11034431134 | N31: 101528025 | O31: 54379630 | P31: 11007389000 | Q31: 5894427000 | R31: 5112962000 | S31: 122857000 | T31: 0.002456725478 | U31: -4.037712232e-08 | V31: 0.005288983568 | W31: -0.55737459
B34: OBSERVACIONES:
C35: CONSORCIO LAS ANIMAS #1,,se subsana integrante 1,2porque no conciliacines

Sheet POA
A1: Modulo | B1: PO | C1: N | D1: Anticipo | F1: SMMLV 2020
A2: 1 | B2: 1756906480 | C2: 24 | D2: 0 | F2: 877803
D3: 0
D4: 0
D5: 0
D6: 0
D7: 0
D8: 0
D9: 0
D10: 0
D11: 0

Sheet Puntajes
B2: EXPERIENCIA | F2: CAPACIDAD TÉCNICA
B3: Mayor a | C3: Menor o Igual a | D3: Puntaje | F3: Desde | G3: Hasta | H3: Puntaje
B4: 0 | C4: 3 | D4: 60 | F4: 1 | G4: 5 | H4: 20
B5: 3 | C5: 6 | D5: 80 | F5: 6 | G5: 10 | H5: 30
B6: 6 | C6: 10 | D6: 100 | F6: 11 | G6: Mayores | H6: 40
B7: 10 | C7: Mayores | D7: 120
B10: CAPACIDAD FINANCIERA
B11: Mayor a | C11: Menor o Igual a | D11: Puntaje
B12: 0 | C12: 0.5 | D12: 20
B13: 0.5 | C13: 0.75 | D13: 25
B14: 0.75 | C14: 1 | D14: 30
B15: 1 | C15: 1.5 | D15: 35
B16: 1.5 | C16: Mayores | D16: 40

Sheet Capacidad Financiera
B3: UNIVERSIDAD DEL ATLÁNTICO
B4: CONVOCATORIA INVITACIÓN PÚBLICA 003 DE 2020
B5: EVALUACIÓN CAPACIDAD RESIDUAL, ORGANIZACIONAL Y FINANCIERA
B7: DATOS DEL INTERESADO | E7: INFORMACIÓN FINANCIERA - RUP | Q7: INDICE-CAPITAL DE TRABAJO DEMANDADO | S7: INDICE-PATRIMONIO | U7: INDICE-LIQUIDEZ | W7: INDICE-ENDEUDAMIENTO | Z7: RAZON DE COBERTURA DE INTERESES | AB7: EVALUACIÓN CAPACIDAD FINANCIERA | AC7: CALIDAD DE MIPYME | AE7: RENTABILIDAD DEL PATRIMONIO (ROE) | AG7: RENTABILIDAD DEL ACTIVO (ROA) | AI7: EVALUACIÓN CAPACIDAD ORGANIZACIÓN
B8: OFERTA | C8: PROPONENTE | D8: PORCENTAJE DE PARTICIPACION | E8: ACTIVO CORRIENTE | F8: ACTIVO TOTAL | G8: PASIVO CORRIENTE | H8: PASIVO TOTAL | I8: CAPITAL DE TRABAJO (Activo Corriente - Pasivo Corriente) | J8: PATRIMONIO (Activo Total - Pasivo Total) | K8: PATRIMONIO ROE (Activo Total - Pasivo Total) | N8: MÓDULO | O8: PLAZO (P) | P8: VALOR PRESUPUESTO OFICIAL ANUAL(PO) | Q8: Fórmula: CT=AC-PC>=(50%*PO) | S8: Fórmula: P=AT-PT >= (70%*PO) | U8: Fórmula: Liquidez=AC/PC>=1,5 | W8: Fórmula: Endeudamiento = Pas.T/Act.Tot. <= 0,70 | Y8: VALOR PATRIMONIO REQUERIDO MODULOS ADJUDICADOS | Z8: Fórmula: Razón Cobertura Intereses = UO/GI >= 1,3 | AB8: HABIL/NO HABIL | AC8: SMMLV 2011 | AD8: 535600 | AE8: Fórmula: ROE=UO/Pat.>=0,10 | AG8: Fórmula: ROE=UO/Act.Tot.>=0,05 | AI8: HABIL/NO HABIL
L9: UTILIDAD OPERACIONAL | M9: GASTOS DE INTERESES | Q9: Req. Min. CTd: > = | R9: (50%*PO) | S9: Req. Min. Patrimonio: > = | T9: 70%*PO | U9: Req. Min. Solvencia: > = | V9: 1.5 | W9: Req. Min. Endeudamiento: < = | X9: 0.7 | Z9: Req. Min. Cobertura Intereses: > = | AA9: 1.3 | AC9: SMMLV 2012 | AD9: 566700 | AE9: Req. Min. ROE: > = | AF9: 0.1 | AG9: Req. Min. ROA: > = | AH9: 0.05
Q10: INDICADOR | R10: RESULTADO | S10: INDICADOR | T10: RESULTADO | U10: INDICADOR | V10: RESULTADO | W10: INDICADOR | X10: RESULTADO | Z10: INDICADOR | AA10: RESULTADO | AC10: CALIDAD DE MIPYME EN SMMLV | AD10: 30000 | AE10: INDICADOR | AF10: RESULTADO | AG10: INDICADOR | AH10: RESULTADO
B12: 1 | C12: CONSORCIO ADECUACION UNIVERSITARIA | D12: 1 | E12: 28919251000 | F12: 30660236600 | G12: 6995645200 | H12: 14120315800 | I12: 27499875000 | J12: 20712833000 | K12: 16539920800 | L12: 2833431400 | M12: 411363800 | N12: 1 | O12: 24 | P12: 1756906480 | Q12: 27499875000 | R12: HABIL | S12: 20712833000 | T12: HABIL | U12: 4.133893326 | V12: HABIL | W12: 0.460541645 | X12: HABIL | Y12: 0 | Z12: 6.887896796 | AA12: HABIL | AB12: HABIL | AE12: 0.1713086438 | AF12: HABIL | AG12: 0.09241387915 | AH12: HABIL | AI12: HABIL
B13: 1.1 | C13: PROYECTOS Y GESTIÓN DEL DESARROLLO S.A.S | D13: 0.8 | E13: 36110362000 | F13: 38286594000 | G13: 8737644000 | H13: 17624337000 | I13: 27372718000 | J13: 20662257000 | K13: 20662257000 | L13: 3534685000 | M13: 514107000 | AC13: 67560.60349 | AD13: NO CUMPLE
B14: 1.2 | C14: PROYECTOS Y DESARROLLO DE COLOMBIA S.A.S | D14: 0.2 | E14: 154807000 | F14: 154807000 | G14: 27650000 | H14: 104231000 | I14: 127157000 | J14: 50576000 | K14: 50576000 | L14: 28417000 | M14: 391000 | AC14: 273.1727545 | AD14: MIPYME
I15: 0 | J15: 0 | K15: 0 | AC15: 0 | AD15: MIPYME
I16: 0 | J16: 0 | K16: 0 | AC16: 0 | AD16: MIPYME
E17: 0 | F17: 0 | G17: 0 | H17: 0 | I17: 0 | J17: 0 | AC17: 0 | AD17: MIPYME
E18: 0 | F18: 0 | G18: 0 | H18: 0 | I18: 0 | J18: 0 | AC18: 0 | AD18: MIPYME
E19: 0 | F19: 0 | G19: 0 | H19: 0 | I19: 0 | J19: 0 | AC19: 0 | AD19: MIPYME
E20: 0 | F20: 0 | G20: 0 | H20: 0 | I20: 0 | J20: 0 | AC20: 0 | AD20: MIPYME
E21: 0 | F21: 0 | G21: 0 | H21: 0 | I21: 0 | J21: 0 | AC21: 0 | AD21: MIPYME
E22: 0 | F22: 0 | G22: 0 | H22: 0 | I22: 0 | J22: 0 | AC22: 0 | AD22: MIPYME
B23: 2 | C23: CONSORCIO URBANO - DEPORTIVO | D23: 1 | E23: 9963139010 | F23: 12268500131 | G23: 5841478427 | H23: 6786335354 | I23: 8243321167 | J23: 10964329554 | K23: 5482164777 | L23: 1557315102 | M23: 179777057.5 | N23: 1 | O23: 24 | P23: 1756906480 | Q23: 8243321167 | R23: HABIL | S23: 10964329554 | T23: HABIL | U23: 1.705585176 | V23: HABIL | W23: 0.5531511824 | X23: HABIL | Y23: 0 | Z23: 8.662479646 | AA23: HABIL | AB23: HABIL | AE23: 0.2840693713 | AF23: HABIL | AG23: 0.1269360627 | AH23: HABIL | AI23: HABIL
B24: 2.1 | C24: CONSULTORES DE INGENIERIA UG21 SL SUCURSAL COLOMBIA | D24: 0.5 | E24: 18194433218 | F24: 21313587895 | G24: 11218462852 | H24: 12547182927 | I24: 6975970366 | J24: 8766404968 | K24: 8766404968 | L24: 2658235132 | M24: 359522370 | AC24: 37610.00158 | AD24: NO CUMPLE
B25: 2.2 | C25: TITO VELASQUEZ BECERRA | D25: 0.5 | E25: 1731844803 | F25: 3223412367 | G25: 464494002 | H25: 1025487781 | I25: 1267350801 | J25: 2197924586 | K25: 2197924586 | L25: 456395071 | M25: 31745 | AC25: 5688.040175 | AD25: MIPYME
I26: 0 | J26: 0 | K26: 0 | AC26: 0 | AD26: MIPYME
I27: 0 | J27: 0 | K27: 0 | AC27: 0 | AD27: MIPYME
E28: 0 | F28: 0 | G28: 0 | H28: 0 | I28: 0 | J28: 0 | AC28: 0 | AD28: MIPYME
E29: 0 | F29: 0 | G29: 0 | H29: 0 | I29: 0 | J29: 0 | AC29: 0 | AD29: MIPYME
E30: 0 | F30: 0 | G30: 0 | H30: 0 | I30: 0 | J30: 0 | AC30: 0 | AD30: MIPYME
E31: 0 | F31: 0 | G31: 0 | H31: 0 | I31: 0 | J31: 0 | AC31: 0 | AD31: MIPYME
E32: 0 | F32: 0 | G32: 0 | H32: 0 | I32: 0 | J32: 0 | AC32: 0 | AD32: MIPYME
E33: 0 | F33: 0 | G33: 0 | H33: 0 | I33: 0 | J33: 0 | AC33: 0 | AD33: MIPYME

Sheet PO (hidden)
A1: ANEXO 1 - ADENDO 4 - DG-164-2004
A3: NUMERO DE GRUPO | B3: TOTAL GRUPO DE TRAMOS
A5: Tramo 01 | B5: 1.609753267e+10
A6: Tramo 02 | B6: 18724260670
A7: Tramo 03 | B7: 15886461489
A8: Tramo 04 | B8: 18533406621
A9: Tramo 05 | B9: 14971945628
A10: Tramo 06 | B10: 16484340849
A11: Tramo 07 | B11: 1.668691971e+10
A12: Tramo 08 | B12: 11566305868
A13: Tramo 09 | B13: 6300474910
A14: Tramo 10 | B14: 1428162158
A15: Tramo 11 | B15: 1292851961
A16: Tramo 12 | B16: 14200237260
A17: Tramo 13 | B17: 14388115033
A18: Tramo 14 | B18: 7076050599
A19: Tramo 15 | B19: 20893814942
A20: Tramo 16 | B20: 8810989120
A21: Tramo 17 | B21: 5818381842
A22: Tramo 18 | B22: 9650261634
A23: Tramo 19 | B23: 5385776414
A24: Tramo 20 | B24: 5759505844
A25: Tramo 21 | B25: 11365045650
A26: Tramo 22 | B26: 15652530637
A27: Tramo 23 | B27: 5772808797
A28: Tramo 24 | B28: 7512106130
A29: Tramo 25 | B29: 9347559589
A30: Tramo 26 | B30: 19825977010
A31: Tramo 27 | B31: 9200191515
A32: Tramo 29 | B32: 18743806542
A33: Tramo 30 | B33: 12488203547
A34: Tramo 31 | B34: 12337277639
A35: Tramo 32 | B35: 1.619849748e+10
A36: Tramo 33 | B36: 17764576319
A37: Tramo 35 | B37: 22882731815
A38: Tramo 36 | B38: 7383905477
A39: Tramo 37 | B39: 12423743774
A40: Tramo 38 | B40: 14187262851
A41: Tramo 39 | B41: 9099377756
A42: Tramo 40 | B42: 7416098511
A43: Tramo 41 | B43: 16654736652
A44: Tramo 42 | B44: 12006016561
A45: Tramo 43 | B45: 14602426835
A46: Tramo 44 | B46: 16600395825
A47: Tramo 45 | B47: 9490692823
A48: Tramo 46 | B48: 14966356774
A49: Tramo 47 | B49: 16628059484
A50: Tramo 48 | B50: 11545020876
A51: Tramo 49 | B51: 11069859631
A52: Tramo 50 | B52: 16462254401
A53: Tramo 51 | B53: 29122451003
A54: Tramo 52 | B54: 19110837484
A55: Tramo 53 | B55: 14355039068
A56: Tramo 54 | B56: 10742553232
A57: Tramo 55 | B57: 12944688820
A58: Tramo 56 | B58: 11689433662
A59: Tramo 57 | B59: 11397659254
A60: Tramo 59 | B60: 16236395384
A61: Tramo 60 | B61: 6151462909
A62: Tramo 61 | B62: 24188206629
A63: Tramo 62 | B63: 22229863427
A64: Tramo 63 | B64: 23200278421
A65: Tramo 64 | B65: 33729146012
A66: Tramo 65 | B66: 25741331764
A67: Tramo 66 | B67: 1.089531669e+10
A68: Tramo 67 | B68: 15574902572
A69: Tramo 68 | B69: 11085498362
A70: Tramo 69 | B70: 15569378930
A71: Tramo 70 | B71: 1.987245699e+10
A72: Tramo 71 | B72: 9279916346
A73: Tramo 72 | B73: 11879598172
A74: Tramo 73 | B74: 14944234555
A75: Tramo 74 | B75: 8486287813
A76: Tramo 75 | B76: 7048832262
A77: Tramo 76 | B77: 5348779190
A78: Tramo 77 | B78: 5466387046
A79: Tramo 78 | B79: 16518448889
A80: Tramo 79 | B80: 8675202615
A81: Tramo 81 | B81: 16760013498
A82: Tramo 82 | B82: 12438755743
A83: Tramo 83 | B83: 14593425402
A84: Tramo 84 | B84: 6689468251
A85: Tramo 85 | B85: 8186369892
A86: Tramo 86 | B86: 28561249598
A87: Tramo 87 | B87: 34980509996
A88: Tramo 88 | B88: 6950846586
A89: Tramo 89 | B89: 11116163961
A90: Tramo 90 | B90: 21274070645
A91: Tramo 91 | B91: 2826770201
A92: Tramo 92 | B92: 4775546619
A93: Tramo 93 | B93: 23755514236
A94: Tramo 94 | B94: 22463613073
A95: Tramo 95 | B95: 20949816946
A96: Tramo 96 | B96: 14104036918
A97: Tramo 97 | B97: 1396272141
A98: Tramo 98 | B98: 1211346171
A99: Tramo 99 | B99: 1239693624
A100: Tramo 100 | B100: 1625508018
B101: =SUM(B4:B100) -> 1.276966895e+12
